[Event "Early-Titled-Tuesday-Blitz-May-28-2024"]
[Site "Chess.com"]
[Date "2024.05.28"]
[Round "8"]
[White "Zq1"]
[Black "MaxLeto"]
[Result "1-0"]
[WhiteElo "2543"]
[BlackElo "2390"]
[TimeControl "180+1"]
[EndTime "9:30:21 PDT"]
[Termination "Zq1 won on time"]

1. d4 {[%clk 0:02:57.2]} 1... h5 {[%clk 0:02:58.2]} 2. c4 {[%clk 0:02:53.5]}
2... h4 {[%clk 0:02:59.1]} 3. Nc3 {[%clk 0:02:52.8]} 3... d6 {[%clk 0:02:58.3]}
4. e4 {[%clk 0:02:52.8]} 4... h3 {[%clk 0:02:56.8]} 5. Nxh3 {[%clk 0:02:47.5]}
5... Bxh3 {[%clk 0:02:56.2]} 6. gxh3 {[%clk 0:02:47.6]} 6... e5 {[%clk 0:02:57]}
7. d5 {[%clk 0:02:45.5]} 7... Nd7 {[%clk 0:02:53.3]} 8. Bg2 {[%clk 0:02:41.7]}
8... Be7 {[%clk 0:02:38.3]} 9. Be3 {[%clk 0:02:40.6]} 9... Bg5 {[%clk
0:02:37.7]} 10. Qd2 {[%clk 0:02:40.6]} 10... Bxe3 {[%clk 0:02:36.1]} 11. Qxe3
{[%clk 0:02:40.8]} 11... Ne7 {[%clk 0:02:30.1]} 12. O-O-O {[%clk 0:02:38]} 12...
Ng6 {[%clk 0:02:30.2]} 13. Ne2 {[%clk 0:02:37.6]} 13... Qh4 {[%clk 0:01:54.1]}
14. Kb1 {[%clk 0:02:35.6]} 14... a5 {[%clk 0:01:52.7]} 15. Rhg1 {[%clk
0:02:31.3]} 15... b6 {[%clk 0:01:52.3]} 16. Ng3 {[%clk 0:02:31.2]} 16... Rh7
{[%clk 0:01:39.5]} 17. Nf5 {[%clk 0:02:29.8]} 17... Qf4 {[%clk 0:01:36.8]} 18.
Qxf4 {[%clk 0:02:28.7]} 18... Nxf4 {[%clk 0:01:36.5]} 19. Bf1 {[%clk 0:02:18.7]}
19... g6 {[%clk 0:01:34.8]} 20. Ne3 {[%clk 0:02:16.9]} 20... Nc5 {[%clk
0:01:31.1]} 21. f3 {[%clk 0:02:14.6]} 21... Ke7 {[%clk 0:01:29.1]} 22. b3 {[%clk
0:02:07.1]} 22... Rah8 {[%clk 0:01:24.2]} 23. Rg3 {[%clk 0:01:41]} 23... Nxh3
{[%clk 0:01:17.7]} 24. Bxh3 {[%clk 0:01:36.1]} 24... Rxh3 {[%clk 0:01:18.6]} 25.
Nf1 {[%clk 0:01:35.4]} 25... R8h6 {[%clk 0:00:40.9]} 26. Kc2 {[%clk 0:01:34.2]}
26... f5 {[%clk 0:00:36.8]} 27. exf5 {[%clk 0:01:23.9]} 27... gxf5 {[%clk
0:00:37.7]} 28. a3 {[%clk 0:01:19.2]} 28... f4 {[%clk 0:00:36.1]} 29. Rg7+
{[%clk 0:01:14.9]} 29... Kd8 {[%clk 0:00:32.6]} 30. b4 {[%clk 0:01:14.8]} 30...
Nb7 {[%clk 0:00:06.3]} 31. Nd2 {[%clk 0:01:09.9]} 31... Rxh2 {[%clk 0:00:03.3]}
32. Rdg1 {[%clk 0:01:08.9]} 32... Rh7 {[%clk 0:00:03.5]} 33. Rg8+ {[%clk
0:01:07.9]} 33... Kd7 {[%clk 0:00:04]} 34. Kd3 {[%clk 0:01:03]} 34... axb4
{[%clk 0:00:03.2]} 35. axb4 {[%clk 0:01:02.5]} 35... Nd8 {[%clk 0:00:02.9]} 36.
Ne4 {[%clk 0:01:00.6]} 36... Rf7 {[%clk 0:00:01.4]} 37. R1g6 {[%clk 0:00:57.6]}
37... Rh3 {[%clk 0:00:00.8]} 38. Nf6+ {[%clk 0:00:54.9]} 38... Kc8 {[%clk
0:00:01]} 39. Ke4 {[%clk 0:00:52.8]} 39... Rh1 {[%clk 0:00:01.2]} 40. Re8 {[%clk
0:00:48.1]} 40... Rxf6 {[%clk 0:00:00.7]} 41. Rxf6 {[%clk 0:00:47]} 41... Kd7
{[%clk 0:00:01.6]} 42. Rg8 {[%clk 0:00:39.9]} 42... Rh7 {[%clk 0:00:01.7]} 43.
Rfg6 {[%clk 0:00:38.3]} 43... Nf7 {[%clk 0:00:01.3]} 44. R6g7 {[%clk 0:00:37.8]}
44... Rxg7 {[%clk 0:00:02]} 45. Rxg7 {[%clk 0:00:37.6]} 45... Ke8 {[%clk
0:00:02.8]} 46. Kf5 {[%clk 0:00:36]} 46... Ke7 {[%clk 0:00:03.3]} 47. Kg6 {[%clk
0:00:35.6]} 47... e4 {[%clk 0:00:01.6]} 48. Rxf7+ {[%clk 0:00:35.1]} 48... Kd8
{[%clk 0:00:02.5]} 49. Rxf4 {[%clk 0:00:35.1]} 49... e3 {[%clk 0:00:03.1]} 50.
Re4 {[%clk 0:00:35.1]} 1-0

[Event "Early-Titled-Tuesday-Blitz-May-28-2024"]
[Site "Chess.com"]
[Date "2024.05.28"]
[Round "8"]
[White "luggevoila"]
[Black "aanshnerurkar"]
[Result "1-0"]
[WhiteElo "2351"]
[BlackElo "2459"]
[TimeControl "180+1"]
[EndTime "9:30:26 PDT"]
[Termination "luggevoila won on time"]

1. e4 {[%clk 0:00:41.5]} 1... c5 {[%clk 0:02:56.8]} 2. Nf3 {[%clk 0:00:41.3]}
2... d6 {[%clk 0:02:56.4]} 3. c3 {[%clk 0:00:41.7]} 3... Nf6 {[%clk 0:02:55.5]}
4. Bd3 {[%clk 0:00:42.3]} 4... Nc6 {[%clk 0:02:52.9]} 5. Bc2 {[%clk 0:00:42.5]}
5... e5 {[%clk 0:02:47]} 6. O-O {[%clk 0:00:42.8]} 6... Be7 {[%clk 0:02:40.3]}
7. h3 {[%clk 0:00:43.4]} 7... O-O {[%clk 0:02:39.2]} 8. Re1 {[%clk 0:00:43.9]}
8... Be6 {[%clk 0:02:35.9]} 9. a4 {[%clk 0:00:44.5]} 9... Rc8 {[%clk 0:02:34.5]}
10. Na3 {[%clk 0:00:44.3]} 10... h6 {[%clk 0:02:26.6]} 11. d3 {[%clk 0:00:44.6]}
11... Nd7 {[%clk 0:02:16.1]} 12. Nc4 {[%clk 0:00:44.6]} 12... a6 {[%clk
0:02:10.4]} 13. Bb3 {[%clk 0:00:44.4]} 13... Nb6 {[%clk 0:01:33.7]} 14. Ne3
{[%clk 0:00:40.6]} 14... d5 {[%clk 0:01:23.4]} 15. a5 {[%clk 0:00:37.5]} 15...
dxe4 {[%clk 0:01:07.6]} 16. Bxe6 {[%clk 0:00:31.3]} 16... exf3 {[%clk
0:00:39.6]} 17. Bxc8 {[%clk 0:00:29.5]} 17... Nxc8 {[%clk 0:00:39.6]} 18. Qxf3
{[%clk 0:00:28.7]} 18... Qxd3 {[%clk 0:00:38.9]} 19. Rd1 {[%clk 0:00:24.1]}
19... Qg6 {[%clk 0:00:38.4]} 20. Nf5 {[%clk 0:00:23.4]} 20... Bf6 {[%clk
0:00:34.4]} 21. Rd7 {[%clk 0:00:23.4]} 21... Kh7 {[%clk 0:00:09.1]} 22. Be3
{[%clk 0:00:23.2]} 22... e4 {[%clk 0:00:07.5]} 23. Qg4 {[%clk 0:00:21.1]} 23...
Ne5 {[%clk 0:00:04.1]} 24. Qxg6+ {[%clk 0:00:20.1]} 24... fxg6 {[%clk
0:00:04.3]} 25. Rxb7 {[%clk 0:00:16]} 25... gxf5 {[%clk 0:00:04.5]} 26. Bxc5
{[%clk 0:00:16.6]} 26... Rd8 {[%clk 0:00:04.7]} 27. b4 {[%clk 0:00:14.7]} 27...
Nd3 {[%clk 0:00:03.9]} 28. Bd4 {[%clk 0:00:14.2]} 28... Bxd4 {[%clk 0:00:03.7]}
29. cxd4 {[%clk 0:00:14.9]} 29... Nd6 {[%clk 0:00:03.3]} 30. Rb6 {[%clk
0:00:13.7]} 30... Nb5 {[%clk 0:00:03.4]} 31. Rxa6 {[%clk 0:00:13.5]} 31... Rxd4
{[%clk 0:00:03.5]} 32. Rb6 {[%clk 0:00:13.2]} 32... Rxb4 {[%clk 0:00:03.6]} 33.
a6 {[%clk 0:00:12.9]} 33... Na7 {[%clk 0:00:03.7]} 34. Rb7 {[%clk 0:00:11.5]}
34... Nc6 {[%clk 0:00:03]} 35. Rxb4 {[%clk 0:00:09.6]} 35... Ndxb4 {[%clk
0:00:02.2]} 36. a7 {[%clk 0:00:10.3]} 36... Nxa7 {[%clk 0:00:02.9]} 37. Rxa7
{[%clk 0:00:11.1]} 1-0

[Event "Early-Titled-Tuesday-Blitz-May-28-2024"]
[Site "Chess.com"]
[Date "2024.05.28"]
[Round "8"]
[White "Goryachkina"]
[Black "viditchess"]
[Result "0-1"]
[WhiteElo "2688"]
[BlackElo "3062"]
[TimeControl "180+1"]
[EndTime "9:30:27 PDT"]
[Termination "viditchess won by resignation"]

1. e4 {[%clk 0:02:59.8]} 1... e6 {[%clk 0:02:59.9]} 2. d4 {[%clk 0:02:58]} 2...
d5 {[%clk 0:03:00.6]} 3. Nc3 {[%clk 0:02:57.6]} 3... Nf6 {[%clk 0:03:00.6]} 4.
e5 {[%clk 0:02:52.4]} 4... Nfd7 {[%clk 0:03:00.7]} 5. f4 {[%clk 0:02:49.3]} 5...
c5 {[%clk 0:03:01.3]} 6. Nf3 {[%clk 0:02:49.1]} 6... Nc6 {[%clk 0:03:02]} 7. Be3
{[%clk 0:02:49]} 7... a6 {[%clk 0:03:02.1]} 8. Qd2 {[%clk 0:02:44.9]} 8... b5
{[%clk 0:03:02.2]} 9. Qf2 {[%clk 0:02:36.9]} 9... Qa5 {[%clk 0:02:58.9]} 10. a3
{[%clk 0:02:13.6]} 10... b4 {[%clk 0:02:58.7]} 11. Nd1 {[%clk 0:02:13.2]} 11...
bxa3+ {[%clk 0:02:48.5]} 12. c3 {[%clk 0:02:12.2]} 12... axb2 {[%clk 0:02:40.2]}
13. Rxa5 {[%clk 0:01:40.3]} 13... b1=Q {[%clk 0:02:40.1]} 14. Ra2 {[%clk
0:01:37.4]} 14... cxd4 {[%clk 0:02:35.1]} 15. Nxd4 {[%clk 0:01:33.4]} 15... Nxd4
{[%clk 0:02:35.1]} 16. Bxd4 {[%clk 0:01:32.7]} 16... Be7 {[%clk 0:01:30.6]} 17.
Rb2 {[%clk 0:01:25.3]} 17... Qa1 {[%clk 0:01:18.7]} 18. Bd3 {[%clk 0:01:19.6]}
18... Qa5 {[%clk 0:01:15.6]} 19. O-O {[%clk 0:00:39]} 19... Nc5 {[%clk
0:01:15.3]} 20. Bc2 {[%clk 0:00:39]} 20... g6 {[%clk 0:00:59]} 21. Ne3 {[%clk
0:00:25.2]} 21... h5 {[%clk 0:00:56.8]} 22. Rfb1 {[%clk 0:00:22.5]} 22... Qc7
{[%clk 0:00:45.9]} 23. Qf3 {[%clk 0:00:18.1]} 23... Ra7 {[%clk 0:00:28.9]} 24.
f5 {[%clk 0:00:10.8]} 24... gxf5 {[%clk 0:00:27.7]} 25. Bxf5 {[%clk 0:00:10.3]}
25... Rb7 {[%clk 0:00:21.3]} 26. Bc2 {[%clk 0:00:04.3]} 26... Rxb2 {[%clk
0:00:21]} 27. Rxb2 {[%clk 0:00:04.7]} 27... Nd7 {[%clk 0:00:19.4]} 28. Qf4
{[%clk 0:00:04.2]} 28... Rg8 {[%clk 0:00:15.2]} 29. h4 {[%clk 0:00:02.9]} 29...
Bf6 {[%clk 0:00:10.2]} 30. Rb1 {[%clk 0:00:02.4]} 30... Bxe5 {[%clk 0:00:10.2]}
31. Bxe5 {[%clk 0:00:02.5]} 31... Qxe5 {[%clk 0:00:10.2]} 32. Qf3 {[%clk
0:00:02.9]} 32... Ke7 {[%clk 0:00:09.6]} 33. Rf1 {[%clk 0:00:02.5]} 33... Nf6
{[%clk 0:00:08.5]} 34. Nxd5+ {[%clk 0:00:02]} 34... exd5 {[%clk 0:00:07.5]} 35.
Qf2 {[%clk 0:00:02.5]} 35... Be6 {[%clk 0:00:07]} 36. Re1 {[%clk 0:00:02.3]}
36... Ne4 {[%clk 0:00:07.2]} 37. Bxe4 {[%clk 0:00:02]} 37... dxe4 {[%clk
0:00:07.6]} 38. Qa7+ {[%clk 0:00:02.3]} 38... Kf8 {[%clk 0:00:07.7]} 39. Qa8+
{[%clk 0:00:01.9]} 39... Kg7 {[%clk 0:00:08]} 40. Rxe4 {[%clk 0:00:02.1]} 40...
Rxa8 {[%clk 0:00:07.4]} 41. Rxe5 {[%clk 0:00:02.3]} 41... Kh6 {[%clk 0:00:07.3]}
0-1

[Event "Early-Titled-Tuesday-Blitz-May-28-2024"]
[Site "Chess.com"]
[Date "2024.05.28"]
[Round "8"]
[White "patzer-reloaded"]
[Black "Kors67"]
[Result "1-0"]
[WhiteElo "2478"]
[BlackElo "2271"]
[TimeControl "180+1"]
[EndTime "9:30:28 PDT"]
[Termination "patzer-reloaded won on time"]

1. d3 {[%clk 0:02:58.3]} 1... g6 {[%clk 0:02:58.3]} 2. Nf3 {[%clk 0:02:58.9]}
2... Bg7 {[%clk 0:02:58.7]} 3. g3 {[%clk 0:02:59.5]} 3... d5 {[%clk 0:02:58.3]}
4. Bg2 {[%clk 0:03:00]} 4... c5 {[%clk 0:02:58.8]} 5. O-O {[%clk 0:03:00.5]}
5... Nc6 {[%clk 0:02:59.3]} 6. c4 {[%clk 0:03:00.9]} 6... d4 {[%clk 0:02:57.9]}
7. a3 {[%clk 0:02:57.4]} 7... a5 {[%clk 0:02:57.1]} 8. e3 {[%clk 0:02:57.1]}
8... e5 {[%clk 0:02:56.4]} 9. exd4 {[%clk 0:02:56.6]} 9... cxd4 {[%clk
0:02:56.4]} 10. Re1 {[%clk 0:02:54]} 10... Nge7 {[%clk 0:02:47.8]} 11. Nbd2
{[%clk 0:02:49.2]} 11... h6 {[%clk 0:02:46.7]} 12. b3 {[%clk 0:02:39.9]} 12...
Bf5 {[%clk 0:02:44.1]} 13. Ne4 {[%clk 0:02:33.4]} 13... O-O {[%clk 0:02:33.9]}
14. Rb1 {[%clk 0:02:32.5]} 14... Bxe4 {[%clk 0:02:17.2]} 15. Rxe4 {[%clk
0:02:31.6]} 15... f5 {[%clk 0:02:17.1]} 16. Re1 {[%clk 0:02:30.8]} 16... Rb8
{[%clk 0:02:00.3]} 17. b4 {[%clk 0:02:30.1]} 17... axb4 {[%clk 0:02:00.7]} 18.
axb4 {[%clk 0:02:30.9]} 18... b5 {[%clk 0:02:01.2]} 19. c5 {[%clk 0:02:05]}
19... Nd5 {[%clk 0:01:59.3]} 20. Qb3 {[%clk 0:02:04]} 20... Kh7 {[%clk
0:01:58.7]} 21. Ng5+ {[%clk 0:02:03.2]} 21... hxg5 {[%clk 0:01:54.6]} 22. Qxd5
{[%clk 0:02:02.4]} 22... Qxd5 {[%clk 0:01:51.2]} 23. Bxd5 {[%clk 0:02:01.7]}
23... Ne7 {[%clk 0:01:51.6]} 24. Bg2 {[%clk 0:01:51.5]} 24... g4 {[%clk
0:01:51.7]} 25. Bg5 {[%clk 0:01:45.7]} 25... Bf6 {[%clk 0:01:50.6]} 26. Bxf6
{[%clk 0:01:45.3]} 26... Rxf6 {[%clk 0:01:50]} 27. Rxe5 {[%clk 0:01:45.2]} 27...
Nc6 {[%clk 0:01:43.7]} 28. Bxc6 {[%clk 0:01:41.2]} 28... Rxc6 {[%clk 0:01:42.8]}
29. Rd5 {[%clk 0:01:41.3]} 29... Re8 {[%clk 0:01:34.8]} 30. Rxd4 {[%clk
0:01:36.2]} 30... Re2 {[%clk 0:01:34.9]} 31. Rd7+ {[%clk 0:01:32.2]} 31... Kh6
{[%clk 0:01:34.2]} 32. d4 {[%clk 0:01:32.3]} 32... Ra6 {[%clk 0:01:27]} 33. d5
{[%clk 0:01:32]} 33... Raa2 {[%clk 0:01:23]} 34. Rf1 {[%clk 0:01:31]} 34... Rac2
{[%clk 0:01:19]} 35. c6 {[%clk 0:01:23.8]} 35... Red2 {[%clk 0:01:18.9]} 36. c7
{[%clk 0:01:21.6]} 36... Kg5 {[%clk 0:01:13.9]} 37. d6 {[%clk 0:01:20.8]} 37...
f4 {[%clk 0:00:48.7]} 38. Rd8 {[%clk 0:01:07.6]} 38... f3 {[%clk 0:00:30.2]} 39.
c8=Q {[%clk 0:01:06.3]} 39... Rxc8 {[%clk 0:00:29.7]} 40. Rxc8 {[%clk
0:01:05.2]} 40... Rxd6 {[%clk 0:00:30.6]} 41. Rc5+ {[%clk 0:01:05.6]} 41... Kh6
{[%clk 0:00:29.3]} 42. Rxb5 {[%clk 0:01:05.4]} 42... g5 {[%clk 0:00:29.4]} 43.
Rb1 {[%clk 0:01:04.1]} 43... Rd2 {[%clk 0:00:25.8]} 44. Rc5 {[%clk 0:01:02.6]}
44... Kh5 {[%clk 0:00:18.9]} 45. Rcc1 {[%clk 0:01:00.9]} 45... Rd6 {[%clk
0:00:15.9]} 46. b5 {[%clk 0:01:00.3]} 46... Rb6 {[%clk 0:00:14.1]} 47. Rc6
{[%clk 0:00:59.2]} 47... Rb7 {[%clk 0:00:13.3]} 48. Rc5 {[%clk 0:00:56.5]} 48...
Rb6 {[%clk 0:00:12.9]} 49. Rd1 {[%clk 0:00:51.4]} 49... Rd6 {[%clk 0:00:08.1]}
50. Rb1 {[%clk 0:00:40.5]} 50... Re6 {[%clk 0:00:08.2]} 51. h4 {[%clk
0:00:35.6]} 51... gxh3 {[%clk 0:00:06.1]} 52. b6 {[%clk 0:00:32.7]} 1-0

[Event "Early-Titled-Tuesday-Blitz-May-28-2024"]
[Site "Chess.com"]
[Date "2024.05.28"]
[Round "8"]
[White "Herzog2012"]
[Black "McCarthyStone"]
[Result "0-1"]
[WhiteElo "2571"]
[BlackElo "2465"]
[TimeControl "180+1"]
[EndTime "9:30:30 PDT"]
[Termination "McCarthyStone won by checkmate"]

1. e4 {[%clk 0:03:00.9]} 1... e5 {[%clk 0:02:59.8]} 2. Nc3 {[%clk 0:03:00.1]}
2... d6 {[%clk 0:02:59.4]} 3. g3 {[%clk 0:02:59.7]} 3... Nc6 {[%clk 0:02:56.1]}
4. Bg2 {[%clk 0:02:58.1]} 4... h5 {[%clk 0:02:56.2]} 5. Nf3 {[%clk 0:02:54.8]}
5... Be7 {[%clk 0:02:53.7]} 6. d4 {[%clk 0:02:52]} 6... exd4 {[%clk 0:02:53.9]}
7. Nxd4 {[%clk 0:02:52]} 7... h4 {[%clk 0:02:53.2]} 8. Nxc6 {[%clk 0:02:31.1]}
8... bxc6 {[%clk 0:02:54.1]} 9. f4 {[%clk 0:02:20.6]} 9... Nf6 {[%clk
0:02:47.7]} 10. e5 {[%clk 0:02:18.4]} 10... Ng4 {[%clk 0:02:22.3]} 11. Bxc6+
{[%clk 0:02:16.3]} 11... Bd7 {[%clk 0:02:19.3]} 12. Qf3 {[%clk 0:01:48.7]} 12...
Rb8 {[%clk 0:02:03.1]} 13. h3 {[%clk 0:01:19.5]} 13... Nh6 {[%clk 0:01:44.3]}
14. g4 {[%clk 0:01:14.7]} 14... dxe5 {[%clk 0:01:32.9]} 15. fxe5 {[%clk
0:01:05.4]} 15... Bc5 {[%clk 0:01:32.8]} 16. Qd5 {[%clk 0:00:52.8]} 16... Bb6
{[%clk 0:01:14.8]} 17. Ne4 {[%clk 0:00:40.1]} 17... Bxc6 {[%clk 0:01:01.7]} 18.
Qxc6+ {[%clk 0:00:39]} 18... Kf8 {[%clk 0:01:02.6]} 19. Bd2 {[%clk 0:00:20.3]}
19... Bd4 {[%clk 0:00:59.9]} 20. Bc3 {[%clk 0:00:16.6]} 20... Bxc3+ {[%clk
0:00:54.4]} 21. Qxc3 {[%clk 0:00:15.5]} 21... Kg8 {[%clk 0:00:45.5]} 22. O-O
{[%clk 0:00:13.5]} 22... Qd5 {[%clk 0:00:40]} 23. Rae1 {[%clk 0:00:11.8]} 23...
Re8 {[%clk 0:00:34.7]} 24. g5 {[%clk 0:00:09.8]} 24... Rxe5 {[%clk 0:00:30.2]}
25. gxh6 {[%clk 0:00:02.2]} 25... Rxh6 {[%clk 0:00:31.1]} 26. Ng5 {[%clk
0:00:01.4]} 26... Rxg5+ {[%clk 0:00:30.3]} 27. Kf2 {[%clk 0:00:01.2]} 27... Rf6+
{[%clk 0:00:16.5]} 28. Ke2 {[%clk 0:00:01.5]} 28... Re5+ {[%clk 0:00:15.4]} 29.
Qxe5 {[%clk 0:00:01.5]} 29... Qxe5+ {[%clk 0:00:16.3]} 30. Kd2 {[%clk
0:00:01.7]} 30... Qd6+ {[%clk 0:00:13.3]} 31. Kc1 {[%clk 0:00:01.9]} 31... Rxf1
{[%clk 0:00:13.5]} 32. Rxf1 {[%clk 0:00:02.8]} 32... Qg3 {[%clk 0:00:13.3]} 33.
Rd1 {[%clk 0:00:02.3]} 33... Qxh3 {[%clk 0:00:13.4]} 34. Rd8+ {[%clk 0:00:02.3]}
34... Kh7 {[%clk 0:00:13.8]} 35. b4 {[%clk 0:00:02]} 35... Qc3 {[%clk
0:00:12.4]} 36. a3 {[%clk 0:00:01.4]} 36... h3 {[%clk 0:00:12.2]} 37. Rd3 {[%clk
0:00:01]} 37... Qxd3 {[%clk 0:00:12]} 38. cxd3 {[%clk 0:00:01.9]} 38... h2
{[%clk 0:00:12.8]} 39. Kc2 {[%clk 0:00:02.4]} 39... h1=Q {[%clk 0:00:13.7]} 40.
Kc3 {[%clk 0:00:03]} 40... Qd5 {[%clk 0:00:13.8]} 41. d4 {[%clk 0:00:03.2]}
41... g5 {[%clk 0:00:13.8]} 42. a4 {[%clk 0:00:03.9]} 42... Kg6 {[%clk
0:00:14.2]} 43. b5 {[%clk 0:00:04.2]} 43... Kf5 {[%clk 0:00:15.1]} 44. Kb4
{[%clk 0:00:04.6]} 44... Ke4 {[%clk 0:00:15.6]} 45. Ka5 {[%clk 0:00:03.8]} 45...
Qxd4 {[%clk 0:00:14.9]} 46. b6 {[%clk 0:00:03.5]} 46... Qxb6# {[%clk 0:00:15.3]}
0-1

[Event "Early-Titled-Tuesday-Blitz-May-28-2024"]
[Site "Chess.com"]
[Date "2024.05.28"]
[Round "8"]
[White "GianmarcoVaR"]
[Black "the_chess_child"]
[Result "0-1"]
[WhiteElo "2723"]
[BlackElo "2898"]
[TimeControl "180+1"]
[EndTime "9:30:36 PDT"]
[Termination "the_chess_child won by resignation"]

1. e4 {[%clk 0:02:56]} 1... c5 {[%clk 0:02:59.9]} 2. Nf3 {[%clk 0:02:56.5]} 2...
e6 {[%clk 0:03:00.6]} 3. d4 {[%clk 0:02:57.1]} 3... cxd4 {[%clk 0:03:01.5]} 4.
Nxd4 {[%clk 0:02:57.6]} 4... Nf6 {[%clk 0:03:02.2]} 5. Nc3 {[%clk 0:02:56.4]}
5... Nc6 {[%clk 0:03:02.6]} 6. a3 {[%clk 0:02:54.3]} 6... d6 {[%clk 0:03:00.6]}
7. Be3 {[%clk 0:02:21.9]} 7... Be7 {[%clk 0:03:00]} 8. Nxc6 {[%clk 0:01:57.6]}
8... bxc6 {[%clk 0:02:59.7]} 9. Qf3 {[%clk 0:01:57.9]} 9... Qc7 {[%clk
0:02:54.8]} 10. g4 {[%clk 0:01:52.1]} 10... Rb8 {[%clk 0:02:53.2]} 11. g5 {[%clk
0:01:42.9]} 11... Nd7 {[%clk 0:02:52.5]} 12. O-O-O {[%clk 0:01:35.9]} 12... Qa5
{[%clk 0:02:37.1]} 13. h4 {[%clk 0:01:27.7]} 13... d5 {[%clk 0:02:34.8]} 14. Nb1
{[%clk 0:01:03.3]} 14... Ba6 {[%clk 0:01:57]} 15. Bxa6 {[%clk 0:00:39.4]} 15...
Qxa6 {[%clk 0:01:57.9]} 16. h5 {[%clk 0:00:40]} 16... O-O {[%clk 0:01:30.8]} 17.
g6 {[%clk 0:00:37.3]} 17... Bf6 {[%clk 0:01:23.6]} 18. Bd4 {[%clk 0:00:32.1]}
18... fxg6 {[%clk 0:01:06.8]} 19. Qh3 {[%clk 0:00:27.6]} 19... Bg5+ {[%clk
0:00:45.4]} 20. Be3 {[%clk 0:00:24.5]} 20... Bxe3+ {[%clk 0:00:44.3]} 21. fxe3
{[%clk 0:00:24.9]} 21... Qb6 {[%clk 0:00:21.3]} 22. Qxe6+ {[%clk 0:00:19.5]}
22... Kh8 {[%clk 0:00:21.2]} 23. hxg6 {[%clk 0:00:18.7]} 23... Qxb2+ {[%clk
0:00:12.7]} 24. Kd2 {[%clk 0:00:19.3]} 24... Nf6 {[%clk 0:00:10.3]} 25. Rxh7+
{[%clk 0:00:05.6]} 25... Nxh7 {[%clk 0:00:10.3]} 26. Qh3 {[%clk 0:00:02.2]}
26... Rf2+ {[%clk 0:00:04.7]} 27. Ke1 {[%clk 0:00:02.7]} 27... Kg8 {[%clk
0:00:03.8]} 28. Qxh7+ {[%clk 0:00:03.2]} 28... Kf8 {[%clk 0:00:04.4]} 29. Kxf2
{[%clk 0:00:03.8]} 29... Qxc2+ {[%clk 0:00:04.9]} 30. Kg3 {[%clk 0:00:02]} 30...
Qxd1 {[%clk 0:00:03.9]} 31. Qh8+ {[%clk 0:00:02.2]} 31... Ke7 {[%clk 0:00:04.3]}
32. Qxg7+ {[%clk 0:00:02.6]} 32... Kd6 {[%clk 0:00:04]} 33. Qf6+ {[%clk
0:00:02.3]} 33... Kc5 {[%clk 0:00:04.3]} 34. Qc3+ {[%clk 0:00:02.9]} 34... Kd6
{[%clk 0:00:04.3]} 35. Qf6+ {[%clk 0:00:02.6]} 35... Kc7 {[%clk 0:00:04.9]} 36.
Qe7+ {[%clk 0:00:03]} 36... Kc8 {[%clk 0:00:05]} 37. Qe8+ {[%clk 0:00:02.2]}
37... Kb7 {[%clk 0:00:05.4]} 38. Qd7+ {[%clk 0:00:02.2]} 38... Kb6 {[%clk
0:00:05.9]} 39. Nc3 {[%clk 0:00:01.8]} 39... Qg1+ {[%clk 0:00:06.1]} 40. Kf3
{[%clk 0:00:02]} 40... Rf8+ {[%clk 0:00:06.2]} 41. Ke2 {[%clk 0:00:02.4]} 41...
Qf1+ {[%clk 0:00:06.7]} 42. Kd2 {[%clk 0:00:01]} 42... Rf2+ {[%clk 0:00:07.6]}
43. Ne2 {[%clk 0:00:01.9]} 43... Qxe2+ {[%clk 0:00:08.3]} 44. Kc3 {[%clk
0:00:02.7]} 44... Qxe3+ {[%clk 0:00:08.8]} 45. Kb4 {[%clk 0:00:02.5]} 45... Qc5+
{[%clk 0:00:09.1]} 0-1

[Event "Early-Titled-Tuesday-Blitz-May-28-2024"]
[Site "Chess.com"]
[Date "2024.05.28"]
[Round "8"]
[White "Slovineanu"]
[Black "ViktoriyaTarasova"]
[Result "0-1"]
[WhiteElo "2529"]
[BlackElo "2388"]
[TimeControl "180+1"]
[EndTime "9:30:36 PDT"]
[Termination "ViktoriyaTarasova won on time"]

1. d4 {[%clk 0:03:00.9]} 1... Nf6 {[%clk 0:02:59.2]} 2. Nf3 {[%clk 0:03:01.1]}
2... e6 {[%clk 0:02:58.3]} 3. c4 {[%clk 0:03:01.3]} 3... b6 {[%clk 0:02:58.2]}
4. e3 {[%clk 0:03:01.5]} 4... Bb7 {[%clk 0:02:53.7]} 5. Bd3 {[%clk 0:03:01.9]}
5... d5 {[%clk 0:02:53.4]} 6. b3 {[%clk 0:03:01.1]} 6... Bd6 {[%clk 0:02:52.4]}
7. O-O {[%clk 0:03:00.1]} 7... Nbd7 {[%clk 0:02:50.8]} 8. Bb2 {[%clk 0:03:00.2]}
8... O-O {[%clk 0:02:48.6]} 9. Nc3 {[%clk 0:03:00.1]} 9... a6 {[%clk 0:02:48.3]}
10. Rc1 {[%clk 0:03:00.6]} 10... Qe7 {[%clk 0:02:47.3]} 11. a4 {[%clk
0:03:00.3]} 11... c5 {[%clk 0:02:44.3]} 12. cxd5 {[%clk 0:03:00.1]} 12... exd5
{[%clk 0:02:43.5]} 13. Ne2 {[%clk 0:02:55.1]} 13... Rac8 {[%clk 0:02:40.7]} 14.
Re1 {[%clk 0:02:53.5]} 14... Ne4 {[%clk 0:02:38.3]} 15. Nf4 {[%clk 0:02:48.4]}
15... Ndf6 {[%clk 0:02:31.4]} 16. Ne5 {[%clk 0:02:43.5]} 16... Rc7 {[%clk
0:02:22.3]} 17. Rc2 {[%clk 0:02:14.3]} 17... Rfc8 {[%clk 0:02:09.9]} 18. f3
{[%clk 0:01:33.3]} 18... Ng5 {[%clk 0:02:06.5]} 19. Bf5 {[%clk 0:01:33.3]} 19...
Rd8 {[%clk 0:01:55.2]} 20. Qd2 {[%clk 0:01:07.8]} 20... Bc8 {[%clk 0:01:28.4]}
21. Bxc8 {[%clk 0:00:59.5]} 21... Rdxc8 {[%clk 0:01:17.1]} 22. Rec1 {[%clk
0:00:58.5]} 22... Ne6 {[%clk 0:01:02.9]} 23. g3 {[%clk 0:00:43.6]} 23... cxd4
{[%clk 0:01:01]} 24. exd4 {[%clk 0:00:42]} 24... Nxf4 {[%clk 0:00:58.7]} 25.
Rxc7 {[%clk 0:00:32.3]} 25... Rxc7 {[%clk 0:00:58.7]} 26. Qxf4 {[%clk
0:00:31.4]} 26... Rxc1+ {[%clk 0:00:57.8]} 27. Qxc1 {[%clk 0:00:31]} 27... Qc7
{[%clk 0:00:57.4]} 28. Qxc7 {[%clk 0:00:29.1]} 28... Bxc7 {[%clk 0:00:56.9]} 29.
Ba3 {[%clk 0:00:28.9]} 29... Bxe5 {[%clk 0:00:30.4]} 30. dxe5 {[%clk 0:00:28.8]}
30... Nd7 {[%clk 0:00:31.1]} 31. f4 {[%clk 0:00:19.7]} 31... g5 {[%clk
0:00:31.3]} 32. Kf2 {[%clk 0:00:19.2]} 32... gxf4 {[%clk 0:00:31.6]} 33. gxf4
{[%clk 0:00:19.7]} 33... Kg7 {[%clk 0:00:31.8]} 34. Kf3 {[%clk 0:00:18.5]} 34...
Kg6 {[%clk 0:00:32]} 35. Kg4 {[%clk 0:00:07.1]} 35... h5+ {[%clk 0:00:31.7]} 36.
Kh4 {[%clk 0:00:06.9]} 36... Kf5 {[%clk 0:00:28.1]} 37. Bd6 {[%clk 0:00:06.5]}
37... Kg6 {[%clk 0:00:26.9]} 38. f5+ {[%clk 0:00:03.6]} 38... Kxf5 {[%clk
0:00:26.5]} 39. Kxh5 {[%clk 0:00:04.1]} 39... d4 {[%clk 0:00:27.1]} 40. Kh4
{[%clk 0:00:03.2]} 40... d3 {[%clk 0:00:20.4]} 41. Bb4 {[%clk 0:00:03.5]} 41...
Nxe5 {[%clk 0:00:20.4]} 42. Kg3 {[%clk 0:00:02.8]} 42... a5 {[%clk 0:00:19]} 43.
Bd2 {[%clk 0:00:02.2]} 43... Nc6 {[%clk 0:00:12.2]} 44. h4 {[%clk 0:00:02]}
44... Kg6 {[%clk 0:00:11.8]} 45. Kg4 {[%clk 0:00:01.2]} 45... f5+ {[%clk
0:00:11.7]} 46. Kf4 {[%clk 0:00:01.2]} 46... Nd4 {[%clk 0:00:12.3]} 47. Ke3
{[%clk 0:00:01]} 47... Nxb3 {[%clk 0:00:12.7]} 0-1